bitfinex/quotes_BTCUSD_20230904
["timestamp","ask_amount","ask_price","bid_price","bid_amount"]
[1693791861594,0.020873,25915.0,25914.0,0.6363473]
[1693791866733,0.70275582,25915.0,25914.0,0.6363473]
[1693791867139,0.71814526,25915.0,25914.0,0.6363473]
[1693791869706,0.71814526,25915.0,25914.0,0.86783018]
[1693791872479,0.71814526,25915.0,25914.0,1.05300792]
[1693791873259,0.71814526,25915.0,25914.0,0.82152504]
[1693791874490,0.71814526,25915.0,25914.0,0.96041001]
[1693791874686,0.71814526,25915.0,25914.0,0.77523227]
[1693791875704,0.71814526,25915.0,25914.0,0.86781924]
[1693791876639,0.71814526,25915.0,25914.0,0.27293697]
[1693791893076,0.42334922,25915.0,25914.0,0.27293697]
[1693791903244,0.72173338,25915.0,25914.0,0.27293697]
[1693791903398,0.80513338,25915.0,25914.0,0.27293697]
[1693791903601,0.80513338,25915.0,25914.0,0.026]
[1693791904242,0.88313338,25915.0,25912.0,0.37035694]
[1693791904470,0.0834,25913.0,25912.0,0.09258697]
[1693791904684,0.49048678,25913.0,25911.0,0.09258697]
[1693791904873,0.55048678,25912.0,25910.0,0.11126376]
[1693791905077,0.0834,25911.0,25910.0,0.11126376]
[1693791905247,0.55048678,25911.0,25910.0,0.01867679]
[1693791906928,0.83489486,25911.0,25910.0,0.02167679]
[1693791907326,0.59948678,25911.0,25910.0,0.02167679]
[1693791907478,0.87878477,25911.0,25910.0,0.02167679]
[1693791907681,0.91178477,25911.0,25910.0,0.02467679]
[1693791907880,0.92697712,25911.0,25910.0,0.02467679]
[1693791923633,0.93697712,25911.0,25910.0,0.02467679]
[1693791924590,0.65767913,25911.0,25910.0,0.02467679]
[1693791925010,0.47427913,25911.0,25910.0,0.02467679]
[1693791926131,0.47403313,25911.0,25910.0,0.02467679]
[1693791930747,0.47403313,25911.0,25910.0,0.11726376]
[1693791932615,0.4793425,25911.0,25910.0,0.11726376]
[1693791940838,0.4793425,25911.0,25910.0,0.02467679]
[1693791941092,0.4793425,25911.0,25910.0,0.11711034]
[1693791942448,0.78689133,25911.0,25910.0,0.02467679]
[1693791942870,0.6227425,25911.0,25910.0,0.02467679]
[1693791943286,0.87821999,25911.0,25910.0,0.02467679]
[1693791943892,0.85821999,25911.0,25910.0,0.02467679]
[1693791944296,0.81821999,25911.0,25910.0,0.02467679]
[1693791947124,0.81624555,25911.0,25910.0,0.02467679]
[1693791948410,0.97624555,25911.0,25910.0,0.02467679]
[1693791958027,1.0067221,25911.0,25910.0,0.02467679]
[1693791961155,0.9967221,25911.0,25910.0,0.02467679]
[1693791963458,0.9967221,25911.0,25910.0,0.00676228]
[1693791964439,0.9897196,25911.0,25910.0,0.00676228]
[1693791964903,0.9997196,25911.0,25910.0,0.00676228]
[1693791965707,0.9797196,25911.0,25910.0,0.00676228]
[1693791966859,0.9597196,25911.0,25910.0,0.00676228]
[1693791967725,0.9397196,25911.0,25910.0,0.00676228]
[1693791967959,0.9197196,25911.0,25910.0,0.00676228]
[1693791968106,0.88924305,25911.0,25910.0,0.00676228]
[1693791971463,0.88924305,25911.0,25910.0,0.006]
[1693791977470,0.86924305,25911.0,25910.0,0.006]
[1693791990227,0.86868705,25911.0,25910.0,0.006]
[1693791999604,0.8998821,25911.0,25910.0,0.006]
[1693792006449,0.8998821,25911.0,25910.0,0.006]
[1693792010534,0.64637905,25911.0,25910.0,0.006]
[1693792010745,0.66637905,25911.0,25910.0,0.006]
[1693792010909,0.96637905,25911.0,25910.0,0.006]
[1693792011377,1.02637905,25911.0,25910.0,0.006]
[1693792011531,1.20099721,25911.0,25910.0,0.003]
[1693792011734,0.06,25908.0,25907.0,0.01983472]
[1693792011889,0.55048678,25908.0,25907.0,0.01983472]
[1693792012100,0.85048678,25908.0,25907.0,0.01983472]
[1693792012329,0.8639571,25908.0,25907.0,0.01983472]
[1693792012530,0.8589571,25908.0,25907.0,0.01983472]
[1693792013786,1.13610944,25908.0,25907.0,0.01983472]
[1693792014766,1.17310944,25908.0,25907.0,0.02283472]
[1693792014991,1.21010944,25908.0,25907.0,0.02583472]
[1693792024703,1.19663912,25908.0,25907.0,0.02583472]
[1693792024906,1.22821456,25908.0,25907.0,0.02583472]
[1693792042949,1.20821456,25908.0,25907.0,0.02583472]
[1693792061808,0.93106222,25908.0,25907.0,0.02583472]
[1693792082934,0.89948678,25908.0,25907.0,0.02583472]
[1693792118647,1.12664817,25908.0,25907.0,0.02583472]
[1693792119595,1.12664817,25908.0,25907.0,0.006]
[1693792134083,0.72664817,25908.0,25907.0,0.006]
[1693792136648,0.08108678,25908.0,25907.0,0.006]
[1693792136854,0.08108678,25908.0,25907.0,0.09866751]
[1693792136855,0.074,25908.0,25907.0,0.09866751]
[1693792137059,0.074,25908.0,25907.0,0.15000127]
[1693792137212,0.074,25908.0,25907.0,0.60614162]
[1693792137622,0.074,25908.0,25907.0,0.24263996]
[1693792137840,0.074,25908.0,25907.0,0.69877616]
[1693792138055,0.074,25908.0,25907.0,0.60613747]
[1693792138650,0.074,25908.0,25907.0,0.72613747]
[1693792138858,0.074,25908.0,25907.0,1.00414]
[1693792139029,0.074,25908.0,25907.0,0.81880498]
[1693792139235,0.074,25908.0,25907.0,1.00402906]
[1693792139446,0.01,25911.0,25907.0,0.99802906]
[1693792139644,0.01,25911.0,25909.0,0.09261221]
[1693792140071,0.01,25911.0,25910.0,0.005]
[1693792140694,0.041,25911.0,25910.0,0.005]
[1693792140847,0.041,25911.0,25910.0,0.0884]
[1693792141923,0.01,25911.0,25910.0,0.0884]
[1693792142301,0.047,25911.0,25910.0,0.0914]
[1693792142505,0.084,25911.0,25910.0,0.0914]
[1693792142910,0.047,25911.0,25910.0,0.0914]
[1693792143113,0.084,25911.0,25910.0,0.0944]
[1693792170663,0.7427405,25911.0,25910.0,0.0944]
[1693792176597,0.8261405,25911.0,25910.0,0.0944]
[1693792176863,0.8261405,25911.0,25910.0,0.011]
[1693792187629,0.8261405,25911.0,25910.0,0.006]
[1693792187868,0.55448678,25911.0,25910.0,0.006]
[1693792195581,0.51748678,25911.0,25910.0,0.003]
[1693792195782,0.55348678,25911.0,25910.0,0.004]
[1693792196429,0.51648678,25911.0,25910.0,0.001]
[1693792196638,0.55248678,25911.0,25910.0,0.003]
[1693792197132,0.51648678,25911.0,25910.0,0.001]
[1693792197311,0.55248678,25911.0,25910.0,0.003]
[1693792199548,0.58748678,25911.0,25910.0,0.003]
[1693792200179,0.55248678,25911.0,25910.0,0.003]
[1693792200397,0.58748678,25911.0,25910.0,0.003]
[1693792200599,0.88748678,25911.0,25910.0,0.003]
[1693792205305,0.94536002,25911.0,25910.0,0.003]
[1693792209149,1.15876427,25911.0,25910.0,0.003]
[1693792215282,1.45771306,25911.0,25910.0,0.003]
[1693792215465,0.035,25908.0,25903.0,0.005]
[1693792215801,0.0834,25904.0,25903.0,0.005]
[1693792215991,0.62532149,25904.0,25903.0,0.005]
[1693792216201,0.47048678,25904.0,25903.0,0.005]
[1693792217249,0.47048678,25904.0,25902.0,0.005]
[1693792217452,0.47048678,25903.0,25902.0,0.005]
[1693792217654,0.47048678,25903.0,25901.0,0.04]
[1693792217874,0.0834,25902.0,25901.0,0.02]
[1693792218077,0.47048678,25902.0,25900.0,0.27047578]
[1693792219711,0.48048678,25902.0,25900.0,0.27047578]
[1693792220127,0.48848678,25902.0,25900.0,0.27047578]
[1693792220330,0.48848678,25902.0,25900.0,0.19047578]
[1693792221700,0.67848678,25902.0,25900.0,0.154466]
[1693792226010,0.208,25902.0,25900.0,0.29595071]
[1693792226210,0.208,25902.0,25901.0,0.0834]
[1693792228025,0.19,25902.0,25901.0,0.17582819]
[1693792228204,0.213,25902.0,25901.0,0.31462202]
[1693792228405,0.234,25902.0,25901.0,0.17582819]
[1693792228843,0.234,25902.0,25901.0,0.31462202]
[1693792231381,0.234,25902.0,25901.0,0.23122202]
[1693792233378,0.234,25902.0,25901.0,0.68744639]
[1693792234149,0.234,25902.0,25901.0,0.23122202]
[1693792242304,0.234,25902.0,25901.0,0.09242819]
[1693792242723,0.234,25902.0,25901.0,0.23122202]
[1693792243376,0.234,25902.0,25901.0,0.31122202]
[1693792243601,0.234,25902.0,25901.0,0.80466962]
[1693792243749,0.234,25902.0,25901.0,1.03599267]
[1693792246231,0.234,25902.0,25901.0,0.80466962]
[1693792249950,0.234,25902.0,25901.0,0.72126962]
[1693792250159,0.234,25902.0,25901.0,0.76750833]
[1693792250364,0.234,25902.0,25901.0,0.31129715]
[1693792252524,0.234,25902.0,25901.0,0.67500329]
[1693792253828,0.234,25902.0,25901.0,0.75840329]
[1693792255448,0.234,25902.0,25901.0,0.94346173]
[1693792258282,0.234,25902.0,25901.0,0.94358635]
[1693792258802,0.234,25902.0,25901.0,0.80474272]
[1693792263172,0.234,25902.0,25901.0,0.72134272]
[1693792268633,0.234,25902.0,25901.0,0.95274877]
[1693792270067,0.234,25902.0,25901.0,0.72134272]
[1693792270876,0.234,25902.0,25901.0,0.95274877]
[1693792271771,0.234,25902.0,25901.0,0.76762393]
[1693792279613,0.234,25902.0,25901.0,0.95288888]
[1693792280382,0.234,25902.0,25901.0,0.76762393]
[1693792283625,0.234,25902.0,25901.0,0.85102393]
[1693792287943,0.234,25902.0,25901.0,0.85123013]
[1693792291004,0.234,25902.0,25901.0,0.61961172]
[1693792291458,0.234,25902.0,25901.0,0.85124778]
[1693792291820,0.234,25902.0,25901.0,0.61961172]
[1693792292231,0.234,25902.0,25901.0,0.53621172]
[1693792311301,0.234,25902.0,25901.0,0.53621102]
[1693792320368,0.234,25902.0,25901.0,0.67377102]
[1693792320570,0.234,25902.0,25901.0,0.67191102]
[1693792320771,0.234,25902.0,25901.0,0.67023102]
[1693792321007,0.234,25902.0,25901.0,0.66945102]
[1693792321180,0.234,25902.0,25901.0,0.66879102]
[1693792321379,0.234,25902.0,25901.0,0.66987102]
[1693792321583,0.234,25902.0,25901.0,0.63053102]
[1693792321812,0.234,25902.0,25901.0,0.63023102]
[1693792321981,0.234,25902.0,25901.0,0.62993102]
[1693792322183,0.234,25902.0,25901.0,0.62945102]
[1693792322406,0.234,25902.0,25901.0,0.63137102]
[1693792322584,0.234,25902.0,25901.0,0.63107102]
[1693792322789,0.234,25902.0,25901.0,0.63251102]
[1693792322993,0.234,25902.0,25901.0,0.63107102]
[1693792323176,0.234,25902.0,25901.0,0.63083102]
[1693792323403,0.234,25902.0,25901.0,0.62675102]
[1693792323616,0.234,25902.0,25901.0,0.62771102]
[1693792323814,0.234,25902.0,25901.0,0.62753102]
[1693792324019,0.234,25902.0,25901.0,0.62729102]
[1693792324263,0.234,25902.0,25901.0,0.62723102]
[1693792324409,0.234,25902.0,25901.0,0.62717102]
[1693792324618,0.234,25902.0,25901.0,0.62711102]
[1693792324819,0.234,25902.0,25901.0,0.62699102]
[1693792325089,0.234,25902.0,25901.0,0.62771102]
[1693792325254,0.234,25902.0,25901.0,0.62753102]
[1693792325468,0.234,25902.0,25901.0,0.61059102]
[1693792325837,0.234,25902.0,25901.0,0.61047102]
[1693792326034,0.234,25902.0,25901.0,0.61035102]
[1693792326242,0.234,25902.0,25901.0,0.61071102]
[1693792326378,0.234,25902.0,25901.0,0.61059102]
[1693792326574,0.234,25902.0,25901.0,0.61257102]
[1693792326776,0.234,25902.0,25901.0,0.61059102]
[1693792326979,0.234,25902.0,25901.0,0.61089102]
[1693792327280,0.234,25902.0,25901.0,0.61215102]
[1693792327477,0.234,25902.0,25901.0,0.61209102]
[1693792327679,0.234,25902.0,25901.0,0.61137102]
[1693792327900,0.234,25902.0,25901.0,0.61341102]
[1693792328060,0.234,25902.0,25901.0,0.61317102]
[1693792328271,0.234,25902.0,25901.0,0.61293102]
[1693792328518,0.234,25902.0,25901.0,0.61065102]
[1693792328718,0.234,25902.0,25901.0,0.61035102]
[1693792328919,0.234,25902.0,25901.0,0.61023102]
[1693792329234,0.234,25902.0,25901.0,0.60969102]
[1693792329419,0.234,25902.0,25901.0,0.60921102]
[1693792329648,0.234,25902.0,25901.0,0.60927102]
[1693792329844,0.234,25902.0,25901.0,0.60885102]
[1693792330213,0.234,25902.0,25901.0,0.60873102]
[1693792330365,0.234,25902.0,25901.0,0.60867102]
[1693792330566,0.234,25902.0,25901.0,0.60831102]
[1693792330772,0.234,25902.0,25901.0,0.60825102]
[1693792330993,0.234,25902.0,25901.0,0.60813102]
[1693792331316,0.234,25902.0,25901.0,0.60795102]
[1693792331522,0.234,25902.0,25901.0,0.60777102]
[1693792331724,0.234,25902.0,25901.0,0.60759102]
[1693792331921,0.234,25902.0,25901.0,0.60747102]
[1693792332424,0.234,25902.0,25901.0,0.60723102]
[1693792332627,0.234,25902.0,25901.0,0.60705102]
[1693792332831,0.234,25902.0,25901.0,0.60603102]
[1693792333013,0.234,25902.0,25901.0,0.14856]
[1693792333210,0.234,25902.0,25901.0,0.14844]
[1693792333444,0.234,25902.0,25901.0,0.53958007]
[1693792343819,0.234,25902.0,25901.0,0.0834]
[1693792344020,0.234,25902.0,25901.0,0.53957614]
[1693792347642,0.234,25902.0,25901.0,0.45617614]
[1693792347866,0.234,25902.0,25901.0,0.68769764]
[1693792348072,0.4471016,25902.0,25901.0,0.87291506]
[1693792348481,0.4671016,25902.0,25901.0,0.59509561]
[1693792349116,0.4231016,25902.0,25901.0,0.59509561]
[1693792349522,0.4671016,25902.0,25901.0,0.68770452]
[1693792349736,0.4671016,25902.0,25901.0,0.59515938]
[1693792350618,0.4671016,25902.0,25901.0,0.68776208]
[1693792350835,0.4231016,25902.0,25901.0,0.68776208]
[1693792351095,0.4931016,25902.0,25901.0,0.68776208]
[1693792351508,0.4931016,25902.0,25901.0,0.23152217]
[1693792353150,0.4931016,25902.0,25901.0,0.0926027]
[1693792358477,0.4931016,25902.0,25900.0,0.2511187]
[1693792358478,0.02,25901.0,25900.0,0.2511187]
[1693792358713,0.49048678,25901.0,25900.0,0.158516]
[1693792359796,0.49048678,25901.0,25900.0,0.00405]
[1693792359997,0.51148678,25901.0,25900.0,0.00405]
[1693792360203,0.76100911,25901.0,25900.0,0.00405]
[1693792360608,0.76300911,25901.0,25900.0,0.00405]
[1693792360815,0.77400911,25901.0,25900.0,0.00405]
[1693792361230,0.2807173,25900.0,25898.0,0.0866527]
[1693792361431,0.0834,25899.0,25898.0,0.0866527]
[1693792363196,0.0834,25899.0,25898.0,0.2411287]
[1693792363397,0.0834,25899.0,25898.0,0.154476]
[1693792363598,0.0934,25899.0,25898.0,0.154476]
[1693792363826,0.1014,25899.0,25898.0,0.154476]
[1693792364344,0.1014,25899.0,25898.0,0.149476]
[1693792364752,0.1214,25899.0,25898.0,0.149476]
[1693792373293,0.038,25899.0,25898.0,0.149476]
[1693792373863,0.038,25899.0,25898.0,0.24193107]
[1693792376582,0.038,25899.0,25898.0,0.38085054]
[1693792379119,0.038,25899.0,25898.0,0.83710933]
[1693792379935,0.038,25899.0,25898.0,0.74465426]
[1693792380271,0.038,25899.0,25898.0,0.8371136]
[1693792380453,0.038,25899.0,25898.0,0.74465426]
[1693792381379,0.038,25899.0,25898.0,0.92987168]
[1693792384371,0.038,25899.0,25898.0,0.79095221]
[1693792389564,0.038,25899.0,25898.0,1.02247371]
[1693792391477,0.038,25899.0,25898.0,0.83725629]
[1693792397490,0.018,25899.0,25898.0,0.77013479]
[1693792397709,0.018,25899.0,25898.0,1.15508103]
[1693792397945,0.018,25899.0,25898.0,1.60094781]
[1693792398193,0.018,25899.0,25898.0,1.35928711]
[1693792398426,0.018,25899.0,25898.0,1.33966711]
[1693792398642,0.01,25899.0,25898.0,1.18694439]
[1693792398852,0.19,25902.0,25899.0,0.1]
[1693792399084,0.68048678,25902.0,25901.0,0.09259947]
[1693792399504,0.68048678,25902.0,25900.0,0.23149465]
[1693792400105,0.62108678,25902.0,25900.0,0.23149465]
[1693792400525,0.59708678,25902.0,25900.0,0.23149465]
[1693792400731,0.02,25901.0,25900.0,0.23149465]
[1693792400925,0.02,25901.0,25900.0,0.78034137]
[1693792401249,0.40708678,25901.0,25900.0,0.59514779]
[1693792401448,0.40708678,25901.0,25900.0,0.13889518]
[1693792401999,0.42808678,25901.0,25900.0,0.13889518]
[1693792403434,0.45208678,25901.0,25900.0,0.13889518]
[1693792405745,0.065,25901.0,25900.0,0.13889518]
[1693792406093,0.065,25901.0,25900.0,0.32408876]
[1693792406297,0.065,25901.0,25900.0,0.64144619]
[1693792406651,0.065,25901.0,25900.0,0.87292375]
[1693792407304,0.065,25901.0,25900.0,0.64144619]
[1693792407525,0.065,25901.0,25900.0,0.87292375]
[1693792407930,0.065,25901.0,25900.0,0.87292813]
[1693792408346,0.065,25901.0,25900.0,0.87292089]
[1693792409749,0.065,25901.0,25900.0,0.87291834]
[1693792412014,0.045,25901.0,25900.0,0.77113017]
[1693792417372,0.065,25901.0,25900.0,0.77113017]
[1693792424673,0.065,25901.0,25900.0,0.68773017]
[1693792425097,0.065,25901.0,25900.0,0.23147756]
[1693792429039,0.065,25901.0,25900.0,0.41661267]
[1693792433588,0.045,25901.0,25900.0,1.18127939]
[1693792433932,0.045,25901.0,25900.0,1.47020899]
[1693792434141,0.045,25901.0,25900.0,1.66730493]
[1693792434406,0.045,25901.0,25900.0,1.53218493]
[1693792434617,0.024,25901.0,25900.0,1.53092493]
[1693792434817,0.027,25901.0,25900.0,1.53396493]
[1693792435145,0.003,25901.0,25900.0,1.53312493]
[1693792435345,0.19,25902.0,25901.0,0.06]
[1693792435553,0.19,25902.0,25901.0,0.59965261]
[1693792435973,0.19,25902.0,25901.0,0.69373261]
[1693792436166,0.19,25902.0,25901.0,0.69187261]
[1693792436375,0.19,25902.0,25901.0,0.69157261]
[1693792436505,0.19,25902.0,25901.0,0.69181261]
[1693792436710,0.19,25902.0,25901.0,0.69157261]
[1693792436940,0.19,25902.0,25901.0,0.69031261]
[1693792437157,0.19,25902.0,25901.0,0.69007261]
[1693792437365,0.19,25902.0,25901.0,0.68989261]
[1693792437540,0.194,25902.0,25901.0,0.69359261]
[1693792437742,0.194,25902.0,25901.0,0.69317261]
[1693792437940,0.198,25902.0,25901.0,0.69729261]
[1693792438138,0.198,25902.0,25901.0,0.69669261]
[1693792438366,0.198,25902.0,25901.0,0.69549261]
[1693792438706,0.198,25902.0,25901.0,0.69543261]
[1693792438817,0.198,25902.0,25901.0,0.69261261]
[1693792439021,0.198,25902.0,25901.0,0.69237261]
[1693792439222,0.198,25902.0,25901.0,0.69333261]
[1693792439447,0.198,25902.0,25901.0,0.69279261]
[1693792439647,0.198,25902.0,25901.0,0.69273261]
[1693792439868,0.198,25902.0,25901.0,0.69255261]
[1693792440063,0.198,25902.0,25901.0,0.65237261]
[1693792440263,0.198,25902.0,25901.0,0.69225261]
[1693792440466,0.198,25902.0,25901.0,0.69249261]
[1693792440720,0.198,25902.0,25901.0,0.69243261]
[1693792440892,0.198,25902.0,25901.0,0.69255261]
[1693792441092,0.198,25902.0,25901.0,0.69267261]
[1693792441289,0.198,25902.0,25901.0,0.69477261]
[1693792441561,0.198,25902.0,25901.0,0.69321261]
[1693792441676,0.198,25902.0,25901.0,0.69309261]
[1693792442102,0.198,25902.0,25901.0,0.69297261]
[1693792442347,0.198,25902.0,25901.0,0.69231261]
[1693792442524,0.198,25902.0,25901.0,0.69153261]
[1693792442741,0.198,25902.0,25901.0,0.69135261]
[1693792442945,0.198,25902.0,25901.0,0.69129261]
[1693792443175,0.198,25902.0,25901.0,0.69117261]
[1693792443328,0.198,25902.0,25901.0,0.69105261]
[1693792443529,0.198,25902.0,25901.0,0.69093261]
[1693792443957,0.198,25902.0,25901.0,0.69075261]
[1693792444180,0.198,25902.0,25901.0,0.69063261]
[1693792444390,0.198,25902.0,25901.0,0.69057261]
[1693792444588,0.198,25902.0,25901.0,0.69045261]
[1693792444807,0.198,25902.0,25901.0,0.69039261]
[1693792444990,0.198,25902.0,25901.0,0.69033261]
[1693792445213,0.198,25902.0,25901.0,0.69021261]
[1693792445410,0.198,25902.0,25901.0,0.69015261]
[1693792445639,0.198,25902.0,25901.0,0.69003261]
[1693792445850,0.198,25902.0,25901.0,0.68997261]
[1693792446000,0.198,25902.0,25901.0,0.69039261]
[1693792446203,0.198,25902.0,25901.0,0.69027261]
[1693792446380,0.198,25902.0,25901.0,0.69021261]
[1693792446580,0.198,25902.0,25901.0,0.69015261]
[1693792446790,0.198,25902.0,25901.0,0.69003261]
[1693792446987,0.198,25902.0,25901.0,0.62991261]
[1693792447212,0.198,25902.0,25901.0,0.68979261]
[1693792447414,0.198,25902.0,25901.0,0.68889261]
[1693792447617,0.198,25902.0,25901.0,0.68853261]
[1693792447780,0.198,25902.0,25901.0,0.68841261]
[1693792447977,0.198,25902.0,25901.0,0.68883261]
[1693792448336,0.198,25902.0,25901.0,0.68691261]
[1693792448489,0.198,25902.0,25901.0,0.68595261]
[1693792448710,0.198,25902.0,25901.0,0.68589261]
[1693792448908,0.198,25902.0,25901.0,0.68583261]
[1693792449108,0.198,25902.0,25901.0,0.68475261]
[1693792449378,0.198,25902.0,25901.0,0.68457261]
[1693792449573,0.198,25902.0,25901.0,0.66265261]
[1693792449831,0.198,25902.0,25901.0,0.81898673]
[1693792450653,0.198,25902.0,25901.0,0.77898673]
[1693792450857,0.198,25902.0,25901.0,0.81898673]
[1693792454158,0.198,25902.0,25901.0,0.58765261]
[1693792470262,0.198,25902.0,25901.0,0.97473939]
[1693792470517,0.198,25902.0,25901.0,1.06053939]
[1693792470715,0.198,25902.0,25901.0,1.05975939]
[1693792470919,0.198,25902.0,25901.0,1.05813939]
[1693792471121,0.198,25902.0,25901.0,1.34687459]
[1693792471331,0.198,25902.0,25901.0,1.62651333]
[1693792471657,0.198,25902.0,25901.0,1.62681333]
[1693792471767,0.198,25902.0,25901.0,1.62591333]
[1693792471975,0.198,25902.0,25901.0,1.62255333]
[1693792472171,0.198,25902.0,25901.0,1.62165333]
[1693792472377,0.198,25902.0,25901.0,1.62159333]
[1693792472637,0.198,25902.0,25901.0,1.62153333]
[1693792472776,0.198,25902.0,25901.0,1.62165333]
[1693792472974,0.198,25902.0,25901.0,1.62150591]
[1693792473172,0.198,25902.0,25901.0,1.62138591]
[1693792473474,0.198,25902.0,25901.0,1.62288591]
[1693792473673,0.198,25902.0,25901.0,1.62312591]
[1693792473957,0.198,25902.0,25901.0,1.62300591]
[1693792474131,0.198,25902.0,25901.0,1.60662591]
[1693792474338,0.198,25902.0,25901.0,1.60548591]
[1693792474587,0.198,25902.0,25901.0,1.60638591]
[1693792475100,0.198,25902.0,25901.0,1.60632591]
[1693792475401,0.198,25902.0,25901.0,1.60578591]
[1693792475598,0.198,25902.0,25901.0,1.60602591]
[1693792476505,0.198,25902.0,25901.0,1.60578591]
[1693792476906,0.198,25902.0,25901.0,1.60572591]
[1693792477043,0.198,25902.0,25901.0,1.60566591]
[1693792477247,0.198,25902.0,25901.0,1.60620591]
[1693792477446,0.198,25902.0,25901.0,1.60626591]
[1693792478477,0.198,25902.0,25901.0,1.60608591]
[1693792478676,0.198,25902.0,25901.0,1.61202591]
[1693792478876,0.198,25902.0,25901.0,1.61958591]
[1693792479113,0.198,25902.0,25901.0,1.61952591]
[1693792479317,0.198,25902.0,25901.0,1.62012591]
[1693792479673,0.198,25902.0,25901.0,1.61970591]
[1693792480012,0.198,25902.0,25901.0,1.63470591]
[1693792480205,0.198,25902.0,25901.0,1.63452591]
[1693792480415,0.198,25902.0,25901.0,1.35685937]
[1693792480619,0.198,25902.0,25901.0,1.72930491]
[1693792480844,0.198,25902.0,25901.0,2.44950551]
[1693792481042,0.02,25906.0,25904.0,0.04]
[1693792481246,0.02,25906.0,25905.0,0.75742198]
[1693792481445,0.02,25906.0,25905.0,1.00830417]
[1693792481673,0.02,25906.0,25905.0,1.00800417]
[1693792481830,0.02,25906.0,25905.0,1.00782417]
[1693792482027,0.02,25906.0,25905.0,1.00446417]
[1693792482226,0.02,25906.0,25905.0,1.00044417]
[1693792482496,0.02,25906.0,25905.0,0.99894417]
[1693792482703,0.02,25906.0,25905.0,0.99960417]
[1693792482851,0.02,25906.0,25905.0,0.99942417]
[1693792483060,0.024,25906.0,25905.0,0.99924417]
[1693792483271,0.024,25906.0,25905.0,1.02456417]
[1693792483272,0.023,25906.0,25905.0,1.02456417]
[1693792483450,0.023,25906.0,25905.0,0.97445327]
[1693792483645,0.026,25906.0,25905.0,0.99987327]
[1693792483848,0.026,25906.0,25905.0,0.99909327]
[1693792484072,0.026,25906.0,25905.0,0.99855327]
[1693792484312,0.026,25906.0,25905.0,0.99939327]
[1693792484511,0.026,25906.0,25905.0,0.99717327]
[1693792484760,0.026,25906.0,25905.0,0.99753327]
[1693792485061,0.026,25906.0,25905.0,0.99795327]
[1693792485276,0.026,25906.0,25905.0,0.99789327]
[1693792485452,0.026,25906.0,25905.0,0.99765327]
[1693792485866,0.026,25906.0,25905.0,0.99759327]
[1693792486041,0.026,25906.0,25905.0,0.99921327]
[1693792486247,0.026,25906.0,25905.0,0.99903327]
[1693792486452,0.026,25906.0,25905.0,1.23021983]
[1693792486603,0.026,25906.0,25905.0,1.23015983]
[1693792486804,0.026,25906.0,25905.0,1.23009983]
[1693792487029,0.026,25906.0,25905.0,1.23015983]
[1693792487244,0.026,25906.0,25905.0,1.23003983]
[1693792487477,0.026,25906.0,25905.0,1.23429983]
[1693792487666,0.026,25906.0,25905.0,1.23561983]
[1693792487867,0.026,25906.0,25905.0,1.23063983]
[1693792488153,0.026,25906.0,25905.0,1.23015983]
[1693792488354,0.026,25906.0,25905.0,1.23009983]
[1693792488604,0.026,25906.0,25905.0,1.23021983]
[1693792488782,0.026,25906.0,25905.0,1.23009983]
[1693792489181,0.026,25906.0,25905.0,1.23003983]
[1693792489384,0.026,25906.0,25905.0,1.22991983]
[1693792489584,0.026,25906.0,25905.0,1.22997983]
[1693792490179,0.026,25906.0,25905.0,1.22991983]
[1693792490361,0.216,25906.0,25905.0,1.22871983]
[1693792490505,0.216,25906.0,25905.0,1.22727983]
[1693792490707,0.216,25906.0,25905.0,1.22631983]
[1693792490945,0.216,25906.0,25905.0,1.22721983]
[1693792491156,0.216,25906.0,25905.0,1.22595983]
[1693792491323,0.216,25906.0,25905.0,1.22541983]
[1693792491524,0.026,25906.0,25905.0,1.22613983]
[1693792491727,0.026,25906.0,25905.0,1.22607983]
[1693792491949,0.026,25906.0,25905.0,1.22613983]
[1693792492123,0.026,25906.0,25905.0,1.22541983]
[1693792492329,0.026,25906.0,25905.0,1.22523983]
[1693792492689,0.026,25906.0,25905.0,1.22481983]
[1693792492849,0.026,25906.0,25905.0,1.15983983]
[1693792493594,0.026,25906.0,25905.0,0.83176894]
[1693792494029,0.026,25906.0,25905.0,0.83177]
[1693792494232,0.30461664,25906.0,25905.0,0.64681704]
[1693792494644,0.30461664,25906.0,25905.0,0.73929457]
[1693792495493,0.29861664,25906.0,25905.0,0.23119407]
[1693792495697,0.30161664,25906.0,25905.0,0.25819407]
[1693792495902,0.30361664,25906.0,25905.0,0.25919407]
[1693792496104,0.30061664,25906.0,25905.0,0.23219407]
[1693792497750,0.02189,25906.0,25905.0,0.23219407]
[1693792500944,0.02189,25906.0,25905.0,0.09347753]
[1693792501281,0.03189,25906.0,25905.0,0.09347753]
[1693792503053,0.03189,25906.0,25905.0,0.001]
[1693792503054,0.74012033,25906.0,25905.0,0.001]
[1693792504919,0.73812033,25906.0,25902.0,0.23119407]
[1693792505124,0.47048678,25905.0,25902.0,0.23119407]
[1693792505544,0.47048678,25905.0,25902.0,0.23124583]
[1693792505949,0.01989,25903.0,25902.0,0.23124583]
[1693792506177,0.01989,25903.0,25902.0,0.24324583]
[1693792506378,0.01989,25903.0,25902.0,0.25724583]
[1693792506582,0.01989,25903.0,25902.0,0.10649833]
[1693792506795,0.01989,25903.0,25902.0,0.11849833]
[1693792508030,0.01989,25903.0,25902.0,0.10449833]
[1693792508243,0.02189,25903.0,25902.0,0.11849833]
[1693792508454,0.02189,25903.0,25902.0,0.10649833]
[1693792508864,0.02189,25903.0,25902.0,0.11849833]
[1693792508865,0.02389,25903.0,25902.0,0.11849833]
[1693792514704,0.02389,25903.0,25902.0,0.026]
[1693792516176,0.02389,25903.0,25902.0,0.11849833]